bitfinex-derivatives/quotes_BTCF0:USTF0_20250921
["timestamp","ask_amount","ask_price","bid_price","bid_amount"]
[1758412802681,0.013,115720.0,115710.0,0.54142]
[1758412803885,0.0993692,115720.0,115710.0,0.54142]
[1758412805586,0.0993692,115720.0,115710.0,1.32034]
[1758412805894,0.0993692,115720.0,115710.0,0.54142]
[1758412806094,0.0993692,115720.0,115710.0,1.32058]
[1758412812299,0.0993692,115720.0,115710.0,1.56937586]
[1758412814709,0.0993692,115720.0,115710.0,1.46937586]
[1758412815404,0.03562158,115720.0,115710.0,1.46937586]
[1758412832514,0.03562158,115720.0,115710.0,1.22058]
[1758412833906,0.03562158,115720.0,115710.0,1.58138]
[1758412836518,0.03562158,115720.0,115710.0,1.83017586]
[1758412838621,0.03562158,115720.0,115710.0,1.83013586]
[1758412840715,0.03562158,115720.0,115710.0,1.58134]
[1758412846325,0.03562158,115720.0,115710.0,0.85974]
[1758412846522,0.03562158,115720.0,115710.0,1.22054]
[1758412852332,0.03562158,115720.0,115710.0,0.85974]
[1758412852629,0.03562158,115720.0,115710.0,1.22054]
[1758412853336,0.03562158,115720.0,115710.0,0.85974]
[1758412853630,0.03562158,115720.0,115710.0,1.22054]
[1758412854453,0.03562158,115720.0,115710.0,0.85974]
[1758412854729,0.03562158,115720.0,115710.0,1.22054]
[1758412857738,0.03562158,115720.0,115710.0,1.3069167]
[1758412860540,0.5279684,115730.0,115710.0,1.3069167]
[1758412860734,0.5491984,115730.0,115720.0,0.3965]
[1758412861139,0.5491984,115730.0,115720.0,0.59859258]
[1758412862535,0.5531984,115730.0,115720.0,0.59859258]
[1758412862738,0.5571984,115730.0,115720.0,0.59859258]
[1758412863238,0.5601984,115730.0,115720.0,0.60159258]
[1758412863438,0.5611984,115730.0,115720.0,0.60259258]
[1758412863932,0.5581984,115730.0,115720.0,0.60159258]
[1758412865438,0.5571984,115730.0,115720.0,0.68796178]
[1758412865941,0.5571984,115730.0,115720.0,0.32716178]
[1758412866135,0.5571984,115730.0,115720.0,0.68796178]
[1758412866339,0.5571984,115730.0,115720.0,0.84344464]
[1758412867040,0.5571984,115730.0,115720.0,0.64135206]
[1758412868037,0.5571984,115730.0,115720.0,0.4858692]
[1758412869441,0.5571984,115730.0,115720.0,0.5266992]
[1758412870542,0.5571984,115730.0,115720.0,0.68219569]
[1758412871745,0.5571984,115730.0,115720.0,0.59582649]
[1758412872041,0.5571984,115730.0,115720.0,1.21929]
[1758412872737,0.5571984,115730.0,115720.0,1.3056592]
[1758412875941,0.5571984,115730.0,115720.0,1.30664444]
[1758412877744,0.5571984,115730.0,115720.0,1.46214093]
[1758412878646,0.5571984,115730.0,115720.0,1.30664444]
[1758412879245,0.5571984,115730.0,115720.0,1.50873702]
[1758412881746,0.47083,115730.0,115720.0,1.50873702]
[1758412882643,0.5571917,115730.0,115720.0,1.50873702]
[1758412882850,0.5571917,115730.0,115720.0,1.30664444]
[1758412886750,0.47083,115730.0,115720.0,1.30664444]
[1758412889955,0.47083,115730.0,115720.0,1.3056592]
[1758412903160,0.47083,115730.0,115720.0,1.50778082]
[1758412905665,0.47083,115730.0,115720.0,1.3056592]
[1758412906466,0.47083,115730.0,115720.0,1.50778678]
[1758412907879,0.47083,115730.0,115720.0,1.3056592]
[1758412910079,0.02923,115730.0,115720.0,1.3056592]
[1758412910381,0.02923,115730.0,115720.0,0.9448592]
[1758412910577,0.02923,115730.0,115720.0,1.3056592]
[1758412911376,0.02923,115730.0,115720.0,1.50781165]
[1758412912878,0.008,115730.0,115720.0,1.50781165]
[1758412913979,0.008,115730.0,115720.0,1.3056592]
[1758412917380,0.008,115730.0,115720.0,1.50780522]
[1758412918879,0.008,115730.0,115720.0,1.14700522]
[1758412919083,0.008,115730.0,115720.0,1.86860522]
[1758412923587,0.008,115730.0,115720.0,1.6664592]
[1758412924294,0.008,115730.0,115720.0,1.86860206]
[1758412925290,0.0943618,115730.0,115720.0,1.86860206]
[1758412927794,0.0943618,115730.0,115720.0,1.6664592]
[1758412932297,0.1174018,115730.0,115720.0,0.8874992]
[1758412932486,0.1174018,115730.0,115720.0,1.6665392]
[1758412941706,0.1174018,115730.0,115720.0,0.8874992]
[1758412941904,0.1174018,115730.0,115720.0,1.6664192]
[1758412965238,0.1174018,115730.0,115720.0,1.3056192]
[1758412966338,0.03104,115730.0,115720.0,1.3056192]
[1758412966538,0.1174018,115730.0,115720.0,1.3056192]
[1758412978550,0.008,115730.0,115720.0,1.21925]
[1758412979247,0.0943618,115730.0,115720.0,1.3056192]
[1758412981646,0.1155118,115730.0,115720.0,0.9448192]
[1758412981853,0.1155118,115730.0,115720.0,1.3056192]
[1758412988257,0.1155118,115730.0,115720.0,1.50776129]
[1758412992060,0.1155118,115730.0,115720.0,1.3056192]
[1758412993062,0.1155118,115730.0,115720.0,1.50776129]
[1758412995462,0.1155118,115730.0,115720.0,1.3056192]
[1758412996969,0.1155118,115730.0,115720.0,1.50776578]
[1758413000572,0.1155118,115730.0,115720.0,1.3056192]
[1758413001062,0.1155117,115730.0,115720.0,1.3056192]
[1758413001259,0.1155117,115730.0,115720.0,1.30766634]
[1758413003071,0.1155117,115730.0,115720.0,1.50981292]
[1758413007876,0.1155117,115730.0,115720.0,1.30766634]
[1758413009377,0.1155117,115730.0,115720.0,1.50981552]
[1758413015577,0.1155117,115730.0,115720.0,1.30766634]
[1758413044206,0.02915,115730.0,115720.0,1.30766634]
[1758413045306,0.1155118,115730.0,115720.0,1.30766634]
[1758413049110,0.008,115730.0,115720.0,1.30766634]
[1758413056614,0.008,115730.0,115720.0,0.94686634]
[1758413056814,0.008,115730.0,115720.0,1.30766634]
[1758413078535,0.1173817,115730.0,115720.0,1.30754634]
[1758413084846,0.1173817,115730.0,115720.0,1.50965775]
[1758413086145,0.1173817,115730.0,115720.0,1.30754634]
[1758413090945,0.1173817,115730.0,115720.0,0.94674634]
[1758413091146,0.1173817,115730.0,115720.0,1.30754634]
[1758413102561,0.0943617,115730.0,115720.0,1.30754634]
[1758413111865,0.0943617,115730.0,115720.0,0.94674634]
[1758413112069,0.0943617,115730.0,115720.0,1.30754634]
[1758413128880,0.0943617,115730.0,115720.0,1.46304821]
[1758413133787,0.0943617,115730.0,115720.0,1.30754634]
[1758413136087,0.0943617,115730.0,115720.0,1.50969877]
[1758413139192,0.0943617,115730.0,115720.0,1.30754634]
[1758413141497,0.008,115730.0,115720.0,1.30754634]
[1758413144794,0.0943618,115730.0,115720.0,1.30754634]
[1758413155311,0.0943618,115730.0,115720.0,1.66834634]
[1758413156610,0.0943618,115730.0,115720.0,1.87048335]
[1758413158913,0.0943618,115730.0,115720.0,1.66834634]
[1758413173019,0.0943618,115730.0,115720.0,1.82384238]
[1758413176519,0.008,115730.0,115720.0,1.82384238]
[1758413177428,0.0943618,115730.0,115720.0,1.82384238]
[1758413179527,0.0943618,115730.0,115720.0,1.66834634]
[1758413185028,0.008,115730.0,115720.0,1.82384247]
[1758413188933,0.008,115730.0,115720.0,1.66834634]
[1758413206644,0.008,115730.0,115720.0,0.88954634]
[1758413206841,0.008,115730.0,115720.0,1.66822634]
[1758413221457,0.008,115730.0,115720.0,0.88954634]
[1758413221653,0.008,115730.0,115720.0,1.66822634]
[1758413224561,0.008,115730.0,115720.0,0.94662634]
[1758413224755,0.008,115730.0,115720.0,1.66822634]
[1758413240476,0.008,115730.0,115720.0,0.88954634]
[1758413240668,0.03013,115730.0,115720.0,1.66818634]
[1758413242973,0.03013,115730.0,115720.0,1.87032002]
[1758413243677,0.1164918,115730.0,115720.0,1.09168002]
[1758413244173,0.1164918,115730.0,115720.0,1.87032002]
[1758413246576,0.1164918,115730.0,115720.0,1.66818634]
[1758413248576,0.1164918,115730.0,115720.0,1.30738634]
[1758413263885,0.1164918,115730.0,115720.0,0.94658634]
[1758413264086,0.1164918,115730.0,115720.0,1.30738634]
[1758413264386,0.1164918,115730.0,115720.0,0.94658634]
[1758413264583,0.1164918,115730.0,115720.0,1.30738634]
[1758413266887,0.1164918,115730.0,115720.0,0.94658634]
[1758413267186,0.1164918,115730.0,115720.0,1.30738634]
[1758413283601,0.1164918,115730.0,115720.0,0.94658634]
[1758413283804,0.1164918,115730.0,115720.0,1.30738634]
[1758413286602,0.1164918,115730.0,115720.0,0.94658634]
[1758413286804,0.1164918,115730.0,115720.0,1.30738634]
[1758413287804,0.03013,115730.0,115720.0,1.30738634]
[1758413288701,0.1164917,115730.0,115720.0,1.30738634]
[1758413315125,0.03013,115730.0,115720.0,1.22101714]
[1758413315316,0.1164917,115730.0,115720.0,1.30738634]
[1758413316523,0.03013,115730.0,115720.0,1.30738634]
[1758413316919,0.1164918,115730.0,115720.0,1.30738634]
[1758413317321,0.008,115730.0,115720.0,1.30738634]
[1758413318023,0.0943618,115730.0,115720.0,1.30738634]
[1758413337936,0.0943618,115730.0,115720.0,0.94658634]
[1758413338142,0.0943618,115730.0,115720.0,1.30738634]
[1758413342346,0.008,115730.0,115720.0,1.30738634]
[1758413343150,0.0943617,115730.0,115720.0,1.30738634]
[1758413343346,0.008,115730.0,115720.0,1.30738634]
[1758413343745,0.008,115730.0,115720.0,1.30730634]
[1758413349851,0.0943618,115730.0,115720.0,1.30730634]
[1758413350742,0.008,115730.0,115720.0,1.30730634]
[1758413354053,0.008,115730.0,115720.0,1.50944498]
[1758413355356,0.008,115730.0,115720.0,1.30730634]
[1758413361571,0.1160818,115730.0,115720.0,0.52874634]
[1758413361776,0.3660818,115730.0,115720.0,0.44237714]
[1758413361967,0.3796118,115730.0,115720.0,0.08157714]
[1758413362167,0.3796118,115730.0,115720.0,0.06905714]
[1758413362659,0.3796118,115730.0,115720.0,0.22415281]
[1758413362869,0.3796118,115730.0,115720.0,0.22455281]
[1758413364169,0.3796118,115730.0,115720.0,0.06905714]
[1758413364471,0.3796118,115730.0,115720.0,0.22441188]
[1758413366768,0.3796118,115730.0,115720.0,0.06905714]
[1758413377277,0.3796118,115730.0,115720.0,0.22433916]
[1758413379284,0.1296118,115730.0,115720.0,0.22433916]
[1758413384573,0.1296118,115730.0,115720.0,0.06905714]
[1758413400590,0.1296118,115730.0,115720.0,0.08294714]
[1758413402997,0.1160818,115730.0,115720.0,0.08294714]
[1758413410097,0.1160818,115730.0,115720.0,0.28509151]
[1758413410596,0.02972,115730.0,115720.0,0.64589151]
[1758413410800,0.008,115730.0,115720.0,0.64589151]
[1758413412008,0.008,115730.0,115720.0,0.89589151]
[1758413417198,0.008,115730.0,115720.0,1.05118878]
[1758413417395,0.008,115730.0,115720.0,0.84904441]
[1758413423610,0.008,115730.0,115720.0,0.69374714]
[1758413425410,0.008,115730.0,115720.0,0.84904441]
[1758413427613,0.008,115730.0,115720.0,0.69374714]
[1758413428211,0.008,115730.0,115720.0,0.89589151]
[1758413437018,0.008,115730.0,115720.0,0.64589151]
[1758413437818,0.008,115730.0,115720.0,0.44374714]
[1758413439217,0.008,115730.0,115720.0,0.69374714]
[1758413439623,0.0201789,115750.0,115740.0,0.03666]
[1758413439919,0.1079593,115760.0,115750.0,0.03666]
[1758413440111,0.1079572,115770.0,115760.0,0.03666]
[1758413440308,0.1079572,115770.0,115760.0,0.55284227]
[1758413440518,0.1079572,115770.0,115760.0,1.33248227]
[1758413440911,0.1083572,115770.0,115760.0,1.33248227]
[1758413442119,0.1083572,115770.0,115760.0,0.55284227]
[1758413442520,0.1143572,115770.0,115760.0,0.55384227]
[1758413442816,0.1143572,115770.0,115760.0,0.55584227]
[1758413443022,0.1273572,115770.0,115760.0,0.55584227]
[1758413443425,0.1273572,115770.0,115760.0,1.33540227]
[1758413443920,0.1273572,115770.0,115760.0,1.40318465]
[1758413444522,0.1273572,115770.0,115760.0,0.62362465]
[1758413445216,0.1273572,115770.0,115760.0,1.40486465]
[1758413445420,0.1273572,115770.0,115760.0,0.62362465]
[1758413450542,0.1273572,115770.0,115760.0,1.40470465]
[1758413451642,0.1273572,115770.0,115760.0,1.24932238]
[1758413455946,0.1273572,115770.0,115760.0,0.46824238]
[1758413456146,0.1273572,115770.0,115760.0,1.24912238]
[1758413463954,0.1273572,115770.0,115760.0,0.46824238]
[1758413464155,0.1273572,115770.0,115760.0,1.24892238]
[1758413466557,0.1273572,115770.0,115760.0,0.46824238]
[1758413466757,0.1273572,115770.0,115760.0,1.24880238]
[1758413469160,0.1273519,115770.0,115760.0,1.24880238]
[1758413469360,0.1057319,115770.0,115760.0,1.24880238]
[1758413470158,0.1053319,115770.0,115760.0,1.40418465]
[1758413470363,0.1057319,115770.0,115760.0,1.40418465]
[1758413471763,0.1057319,115770.0,115760.0,1.24880238]
[1758413473462,0.1057319,115770.0,115760.0,1.45079933]
[1758413477170,0.1057319,115770.0,115760.0,0.67023933]
[1758413477358,0.1275519,115770.0,115760.0,1.45071933]
[1758413479369,0.1275519,115770.0,115760.0,1.24872238]
[1758413483874,0.1275519,115770.0,115760.0,1.40412397]
[1758413485375,0.1275519,115770.0,115760.0,0.62364397]
[1758413485576,0.1275519,115770.0,115760.0,1.40392397]
[1758413489576,0.1275519,115770.0,115760.0,1.24852238]
[1758413490281,0.1275519,115770.0,115760.0,1.45051933]
[1758413490781,0.1275519,115770.0,115760.0,1.45039933]
[1758413491289,0.1275519,115770.0,115760.0,1.45035933]
[1758413495790,0.1275519,115770.0,115760.0,0.67023933]
[1758413495991,0.1275519,115770.0,115760.0,1.45027933]
[1758413503495,0.1275519,115770.0,115760.0,1.08947933]
[1758413503692,0.1275519,115770.0,115760.0,1.45027933]
[1758413518306,0.1275519,115770.0,115760.0,0.67023933]
[1758413518506,0.1275519,115770.0,115760.0,1.44991933]
[1758413519105,0.1275519,115770.0,115760.0,0.67023933]
[1758413519310,0.1275519,115770.0,115760.0,1.44991933]
[1758413519809,0.1275519,115770.0,115760.0,0.67023933]
[1758413520010,0.1275519,115770.0,115760.0,1.44987933]
[1758413522312,0.1275519,115770.0,115760.0,0.67023933]
[1758413522513,0.1275519,115770.0,115760.0,1.44987933]
[1758413522905,0.1275519,115770.0,115760.0,1.44983933]
[1758413526512,0.1275519,115770.0,115760.0,1.08903933]
[1758413526706,0.1275519,115770.0,115760.0,1.44983933]
[1758413529917,0.1275519,115770.0,115760.0,1.08903933]
[1758413530111,0.1275519,115770.0,115760.0,1.44983933]
[1758413530706,0.1275519,115770.0,115760.0,1.44975933]
[1758413531315,0.1275519,115770.0,115760.0,0.67023933]
[1758413531516,0.1275519,115770.0,115760.0,1.44971933]
[1758413532713,0.1275519,115770.0,115760.0,1.24772238]
[1758413533417,0.1275519,115770.0,115760.0,0.46824238]
[1758413533715,0.1275519,115770.0,115760.0,1.24772238]
[1758413534517,0.1275519,115770.0,115760.0,0.88692238]
[1758413534719,0.1275519,115770.0,115760.0,1.24772238]
[1758413535419,0.1275519,115770.0,115760.0,0.88692238]
[1758413535620,0.1275519,115770.0,115760.0,1.24772238]
[1758413537420,0.1275519,115770.0,115760.0,0.88692238]
[1758413537721,0.1275519,115770.0,115760.0,1.24772238]
[1758413538622,0.1275519,115770.0,115760.0,0.88692238]
[1758413538824,0.1275519,115770.0,115760.0,1.24772238]
[1758413542427,0.1275519,115770.0,115760.0,1.44971933]
[1758413548329,0.1275519,115770.0,115760.0,1.24772238]
[1758413549629,0.1275519,115770.0,115760.0,1.24748238]
[1758413555442,0.1275519,115770.0,115760.0,1.40294399]
[1758413562948,0.1275519,115770.0,115760.0,1.24748238]
[1758413569358,0.1275519,115770.0,115760.0,1.24732238]
[1758413571853,0.1275519,115770.0,115760.0,0.88652238]
[1758413572060,0.1275519,115770.0,115760.0,1.24732238]
[1758413574461,0.1275519,115770.0,115760.0,1.24740238]
[1758413578463,0.1275519,115770.0,115760.0,0.46824238]
[1758413578762,0.1275519,115770.0,115760.0,1.24732238]
[1758413580964,0.1275519,115770.0,115760.0,1.44931933]
[1758413581263,0.1275519,115770.0,115760.0,1.60476646]
[1758413581966,0.1275519,115770.0,115760.0,1.44931933]
[1758413582177,0.1275519,115770.0,115760.0,1.24732238]
[1758413583468,0.1275519,115770.0,115760.0,0.88652238]
[1758413583771,0.1275519,115770.0,115760.0,1.24732238]
[1758413591889,0.1275519,115770.0,115760.0,1.44931933]
[1758413597898,0.1275519,115770.0,115760.0,1.08851933]
[1758413598101,0.1275519,115770.0,115760.0,1.44931933]
[1758413598397,0.1275519,115770.0,115760.0,1.08851933]
[1758413598598,0.1275519,115770.0,115760.0,1.44931933]
[1758413619714,0.1275519,115770.0,115760.0,1.24732238]
[1758413622220,0.1275519,115770.0,115760.0,1.44933347]
[1758413627524,0.1057319,115770.0,115760.0,1.44933347]
[1758413627725,0.1057319,115770.0,115760.0,0.67025347]
[1758413627918,0.1057319,115770.0,115760.0,1.44913347]
[1758413631829,0.1057319,115770.0,115760.0,1.24712238]
[1758413634626,0.1057319,115770.0,115760.0,0.88632238]
[1758413634930,0.1057319,115770.0,115760.0,1.24712238]
[1758413636640,0.1057319,115770.0,115760.0,0.88632238]
[1758413636931,0.1057319,115770.0,115760.0,1.24712238]
[1758413641533,0.1057319,115770.0,115760.0,1.44913347]
[1758413667750,0.1053319,115770.0,115760.0,1.44913347]
[1758413669652,0.1053319,115770.0,115760.0,1.53547287]
[1758413672855,0.1053319,115770.0,115760.0,1.33346178]
[1758413687970,0.1053319,115770.0,115760.0,1.53553896]
[1758413690561,0.1053319,115770.0,115760.0,1.33346178]
[1758413691173,0.1053319,115770.0,115760.0,1.48890576]
[1758413694373,0.1053319,115770.0,115760.0,1.33346178]
[1758413698874,0.1053319,115770.0,115760.0,1.53553896]
[1758413700182,0.1053319,115770.0,115760.0,1.33346178]
[1758413702278,0.1053319,115770.0,115760.0,1.53553441]
[1758413725510,0.1053319,115770.0,115760.0,1.17473441]
[1758413725709,0.1053319,115770.0,115760.0,1.53553441]
[1758413729314,0.1053319,115770.0,115760.0,1.17473441]
[1758413729615,0.1053319,115770.0,115760.0,1.53553441]
[1758413755437,0.1053319,115770.0,115760.0,1.17473441]
[1758413755628,0.1053319,115770.0,115760.0,1.53553441]
[1758413756734,0.1053319,115770.0,115760.0,1.33346178]
[1758413758337,0.1053319,115770.0,115760.0,0.97266178]
[1758413758530,0.1053319,115770.0,115760.0,1.33346178]
[1758413760731,0.1053319,115770.0,115760.0,1.48864405]
[1758413766242,0.1053319,115770.0,115760.0,1.33346178]
[1758413767743,0.019,115770.0,115760.0,1.33346178]
[1758413767943,0.1053319,115770.0,115760.0,1.33346178]
[1758413775049,0.1053319,115770.0,115760.0,1.53510473]
[1758413776647,0.019,115770.0,115760.0,1.53510473]
[1758413777451,0.1053319,115770.0,115760.0,1.53510473]
[1758413781054,0.1053319,115770.0,115760.0,1.33346178]
[1758413789065,0.019,115770.0,115760.0,1.33346178]
[1758413789273,0.0194,115770.0,115760.0,1.36629178]
[1758413791577,0.0194,115770.0,115760.0,1.00549178]
[1758413791775,0.0194,115770.0,115760.0,1.72709178]
[1758413792874,0.0194,115770.0,115760.0,1.88212473]
[1758413802386,0.0194,115770.0,115760.0,1.72709178]
[1758413826492,0.0194,115770.0,115760.0,1.72677178]
[1758413827095,0.0194,115770.0,115760.0,1.97556764]
[1758413829095,0.0194,115770.0,115760.0,1.72677178]
[1758413831103,0.0194,115770.0,115760.0,1.92843724]
[1758413834803,0.0194,115770.0,115760.0,1.72677178]
[1758413838408,0.0194,115770.0,115760.0,1.92843724]
[1758413841914,0.0194,115770.0,115760.0,1.72677178]
[1758413842616,0.0194,115770.0,115760.0,1.92845154]
[1758413843823,0.0194,115770.0,115760.0,1.72677178]
[1758413844724,0.1290319,115770.0,115760.0,0.94821178]
[1758413845027,0.1290319,115770.0,115760.0,1.06357071]
[1758413845228,0.3920619,115770.0,115760.0,1.06397071]
[1758413845521,0.3920619,115770.0,115760.0,1.03963833]
[1758413845717,0.3920619,115770.0,115760.0,0.26071833]
[1758413845919,0.7528619,115770.0,115760.0,0.20509833]
[1758413846115,0.8221992,115770.0,115760.0,0.003]
[1758413846320,0.8221992,115770.0,115760.0,0.0034]
[1758413846726,0.8221992,115770.0,115760.0,0.003]
[1758413847027,0.8221992,115770.0,115760.0,0.0034]
[1758413853834,1.6011192,115770.0,115760.0,0.0034]
[1758413854734,0.8221992,115770.0,115760.0,0.0034]
[1758413854936,1.6011992,115770.0,115760.0,0.0034]
[1758413855138,0.8221992,115770.0,115760.0,0.0034]
[1758413855834,1.6011992,115770.0,115760.0,0.0034]
[1758413859341,1.3511992,115770.0,115760.0,0.0034]
[1758413859939,0.9903992,115770.0,115760.0,0.0034]
[1758413860139,1.7119992,115770.0,115760.0,0.0034]
[1758413883959,0.9903992,115770.0,115760.0,0.0034]
[1758413884159,1.7119992,115770.0,115760.0,0.0034]
[1758413884460,0.9903992,115770.0,115760.0,0.0034]
[1758413884652,1.7119992,115770.0,115760.0,0.0034]
[1758413888567,0.9903992,115770.0,115760.0,0.0034]
[1758413888865,1.7119992,115770.0,115760.0,0.0034]
[1758413891465,1.7118392,115770.0,115760.0,0.0034]
[1758413894465,0.9329992,115770.0,115760.0,0.0034]
[1758413894769,1.7119192,115770.0,115760.0,0.0034]
[1758413895470,1.7120392,115770.0,115760.0,0.0034]
[1758413900484,0.1217694,115760.0,115750.0,0.15525855]
[1758413900675,0.0863468,115750.0,115740.0,0.0009]
[1758413900869,0.0863468,115750.0,115740.0,0.0008]
[1758413900870,1.2615768,115750.0,115740.0,0.0008]
[1758413901074,0.1217843,115740.0,115730.0,0.17664855]
[1758413901280,0.1217843,115740.0,115730.0,0.17654855]
[1758413901781,0.1217843,115740.0,115730.0,0.19024855]
[1758413902081,0.1068043,115740.0,115730.0,0.19024855]
[1758413902779,0.1058043,115740.0,115730.0,0.19024855]
[1758413903480,0.1118043,115740.0,115730.0,0.19224855]
[1758413904070,0.1118043,115740.0,115730.0,0.03709]
[1758413906281,0.1252243,115740.0,115730.0,0.02339]
[1758413907385,0.1252243,115740.0,115730.0,0.002]
[1758413907585,0.4860243,115740.0,115730.0,0.002]
[1758413908485,0.4860243,115740.0,115730.0,0.0024]
[1758413908678,0.4860243,115740.0,115730.0,0.002]
[1758413908886,0.4860243,115740.0,115730.0,0.0024]
[1758413909083,0.4860243,115740.0,115730.0,0.002]
[1758413909381,0.7360243,115740.0,115730.0,0.0024]
[1758413912988,0.75643668,115740.0,115730.0,0.0024]
[1758413914890,1.53615668,115740.0,115730.0,0.0024]
[1758413915789,1.53619668,115740.0,115730.0,0.0024]
[1758413916089,0.75643668,115740.0,115730.0,0.0024]
[1758413916790,1.53619668,115740.0,115730.0,0.0024]
[1758413916993,1.53619668,115740.0,115730.0,0.02462]
[1758413917191,1.53619668,115740.0,115730.0,0.0024]
[1758413919292,1.28619668,115740.0,115730.0,0.0024]
[1758413920693,0.50643668,115740.0,115730.0,0.02462]
[1758413920890,1.28619668,115740.0,115730.0,0.02462]
[1758413926196,0.50643668,115740.0,115730.0,0.02462]
[1758413926398,1.28615668,115740.0,115730.0,0.02462]
[1758413934902,0.92535668,115740.0,115730.0,0.02462]
[1758413935194,1.28603668,115740.0,115730.0,0.02462]
[1758413935398,0.50643668,115740.0,115730.0,0.02462]
[1758413935599,1.28599668,115740.0,115730.0,0.02462]
[1758413936300,1.28611668,115740.0,115730.0,0.02462]
[1758413938105,1.28611668,115740.0,115730.0,0.28839]
[1758413938401,1.28607668,115740.0,115730.0,0.28839]
[1758413939694,1.28607668,115740.0,115730.0,0.44361156]
[1758413940503,1.28607668,115740.0,115730.0,0.28839]
[1758413941902,1.28607668,115740.0,115730.0,0.27462]
[1758413945609,1.28607668,115740.0,115730.0,0.42984156]
[1758413948708,1.28607668,115740.0,115730.0,0.27462]
[1758413948910,0.92527668,115740.0,115730.0,0.27462]
[1758413949109,1.28607668,115740.0,115730.0,0.27462]
[1758413954415,1.28607668,115740.0,115730.0,0.42984156]
[1758413955106,1.28607668,115740.0,115730.0,0.27462]
[1758413956914,0.92527668,115740.0,115730.0,0.27462]
[1758413957218,1.28607668,115740.0,115730.0,0.27462]
[1758413964722,1.28607668,115740.0,115730.0,0.42984156]
[1758413969525,1.28607668,115740.0,115730.0,0.27462]
[1758413979331,1.28607668,115740.0,115730.0,0.02462]
[1758413980039,1.28607668,115740.0,115730.0,0.17984156]
[1758413988645,0.92527668,115740.0,115730.0,0.17984156]
[1758413988950,1.28607668,115740.0,115730.0,0.17984156]
[1758413991454,1.28607668,115740.0,115730.0,0.0024]
[1758413991455,1.64687668,115740.0,115730.0,0.0024]
[1758413991656,1.64687668,115740.0,115730.0,0.002]
[1758413991953,1.64687668,115740.0,115730.0,0.0024]
[1758413996455,1.64687668,115740.0,115730.0,0.002]
[1758413996654,1.64687668,115740.0,115730.0,0.0024]
[1758414017472,0.92527668,115740.0,115730.0,0.0024]
[1758414017673,1.64687668,115740.0,115730.0,0.0024]
[1758414021072,1.64687668,115740.0,115730.0,0.15762156]
[1758414025477,0.92527668,115740.0,115730.0,0.15762156]
[1758414025777,1.64687668,115740.0,115730.0,0.15762156]
[1758414027475,1.64687668,115740.0,115730.0,0.0024]
[1758414033787,1.6264643,115740.0,115730.0,0.0024]
[1758414034788,1.6264643,115740.0,115730.0,0.15762156]
[1758414036490,1.6264643,115740.0,115730.0,0.0024]
[1758414037990,1.89259232,115740.0,115730.0,0.0024]
[1758414043699,1.89259232,115740.0,115730.0,0.15762156]
[1758414047804,2.15872034,115740.0,115730.0,0.15762156]
[1758414048106,2.15872034,115740.0,115730.0,0.15722156]
[1758414048507,2.15872034,115740.0,115730.0,0.002]
[1758414048806,2.15872034,115740.0,115730.0,0.0024]
[1758414053505,2.15872034,115740.0,115730.0,0.002]
[1758414053710,2.15872034,115740.0,115730.0,0.0024]
[1758414062313,0.1217719,115730.0,115720.0,0.00214714]
[1758414062611,0.74869992,115730.0,115720.0,0.00204714]
[1758414063012,0.74869992,115730.0,115720.0,0.00244714]
[1758414063712,0.75169992,115730.0,115720.0,0.00444714]
[1758414064714,0.75469992,115730.0,115720.0,0.00544714]
[1758414064905,0.76169992,115730.0,115720.0,0.00544714]
[1758414065705,0.83235998,115730.0,115720.0,0.00544714]
[1758414071916,0.1202299,115720.0,115710.0,0.15407072]
[1758414072210,0.1202299,115720.0,115710.0,0.15447072]
[1758414072211,1.52627792,115720.0,115710.0,0.15447072]
[1758414072514,1.52627792,115720.0,115710.0,0.15407072]
[1758414072714,0.1202448,115700.0,115690.0,0.23919833]
[1758414073012,1.52629282,115700.0,115690.0,0.23909833]
[1758414073310,1.52629282,115700.0,115690.0,0.037]
[1758414073515,1.52629282,115700.0,115690.0,0.02313]
[1758414074113,1.52429282,115700.0,115690.0,0.02373]
[1758414074314,1.52429282,115700.0,115690.0,0.02413]
[1758414074516,1.52629282,115700.0,115690.0,0.02813]
[1758414076216,1.5349567,115700.0,115690.0,0.02813]
[1758414077406,1.52629282,115700.0,115690.0,0.02813]
[1758414078419,1.53474543,115700.0,115690.0,0.02813]
[1758414097736,1.80118869,115700.0,115690.0,0.02813]
[1758414098130,1.80118869,115700.0,115690.0,0.18326133]
[1758414109447,1.80118869,115700.0,115690.0,0.0054]
[1758414109947,1.80118869,115700.0,115690.0,0.02843]
[1758414120764,1.80118869,115700.0,115690.0,0.0054]
[1758414123473,1.44038869,115700.0,115690.0,0.0054]
[1758414123673,1.80118869,115700.0,115690.0,0.0054]
[1758414124869,1.80118869,115700.0,115690.0,0.0279]
[1758414126071,1.80118869,115700.0,115690.0,0.0054]
[1758414127871,1.80118869,115700.0,115690.0,0.0279]
[1758414130376,1.80118869,115700.0,115690.0,0.18303133]
[1758414130873,1.53490305,115700.0,115690.0,0.44931697]
[1758414131775,1.80118869,115700.0,115690.0,0.44931697]
[1758414134376,1.80118869,115700.0,115690.0,0.29418564]
[1758414134576,1.80118869,115700.0,115690.0,0.4497513]
[1758414136281,1.26861741,115700.0,115690.0,0.4497513]
[1758414136577,1.80118869,115700.0,115690.0,0.4497513]
[1758414137475,1.26861741,115700.0,115690.0,0.4497513]
[1758414137678,1.80118869,115700.0,115690.0,0.4497513]
[1758414142278,1.80118869,115700.0,115690.0,0.18346566]
[1758414142986,1.26861741,115700.0,115690.0,0.18346566]
[1758414143186,1.80118869,115700.0,115690.0,0.18346566]
[1758414144376,1.80118869,115700.0,115690.0,0.0279]
[1758414145088,1.80118869,115700.0,115690.0,0.0054]
[1758414145686,1.80118869,115700.0,115690.0,0.0273]
[1758414150085,1.26861741,115700.0,115690.0,0.0273]
[1758414150290,1.80118869,115700.0,115690.0,0.0273]
[1758414157790,1.53491258,115700.0,115690.0,0.0273]
[1758414158895,0.75579258,115700.0,115690.0,0.0273]
[1758414159094,1.53623258,115700.0,115690.0,0.0054]
[1758414161195,1.53623258,115700.0,115690.0,0.0273]
[1758414161496,1.53623258,115700.0,115690.0,0.0054]
[1758414163395,1.78623258,115700.0,115690.0,0.0054]
[1758414163595,0.1222133,115690.0,115680.0,0.0009]
[1758414163797,0.1222207,115680.0,115670.0,0.05483]
[1758414163996,1.2633807,115680.0,115670.0,0.05473]
[1758414164701,1.2613807,115680.0,115670.0,0.05473]
[1758414166601,1.2553807,115680.0,115670.0,0.05473]
[1758414167098,1.2583807,115680.0,115670.0,0.05873]
[1758414168708,1.52467587,115680.0,115670.0,0.05873]
[1758414170102,1.52467587,115680.0,115670.0,0.21429566]
[1758414172508,1.52467587,115680.0,115670.0,0.05873]